fUSD/lending_fUSD_20240429
["ID","MTS","AMOUNT","RATE_DAILY","PERIOD"]
[324915855,1714415439027,-500.0,0.0001127,2]
[324915857,1714415439037,-881.16,0.0001127,2]
[324915859,1714415439047,-6165.83,0.0001127,2]
[324915861,1714415439056,-520.19197883,0.0001127,2]
[324915863,1714415439065,-500.0,0.0001127,2]
[324915865,1714415439075,-3747.04,0.0001127,2]
[324915867,1714415439084,-500.0,0.0001127,2]
[324915869,1714415439093,-5413.66,0.0001127,2]
[324915871,1714415439102,-500.0,0.0001127,2]
[324915873,1714415439111,-500.0,0.0001127,2]
[324915875,1714415439120,-500.0,0.0001127,2]
[324915877,1714415439130,-500.0,0.0001127,2]
[324915879,1714415439139,-500.0,0.0001127,2]
[324915881,1714415439148,-2142.36,0.0001127,2]
[324915883,1714415439157,-522.28,0.0001127,2]
[324915885,1714415439166,-1123.94,0.0001127,2]
[324915887,1714415439175,-917.58,0.0001127,2]
[324915889,1714415439185,-500.0,0.0001127,2]
[324915891,1714415439196,-1163.02,0.0001127,2]
[324915893,1714415439205,-500.0,0.0001127,2]
[324915895,1714415439214,-361.61457839,0.0001127,2]
[324915897,1714415439223,-1133.02,0.0001127,2]
[324915899,1714415439233,-1122.95,0.0001127,2]
[324915901,1714415439242,-4665.06,0.0001127,2]
[324915903,1714415439251,-500.0,0.0001127,2]
[324915905,1714415439260,-1408.02,0.0001127,2]
[324915907,1714415439269,-500.0,0.0001127,2]
[324915930,1714415439477,-500.0,0.0001127,2]
[324915932,1714415439487,-1813.76,0.0001127,2]
[324915935,1714415439496,-1142.08,0.0001127,2]
[324915938,1714415439506,-901.76,0.0001127,2]
[324915940,1714415439515,-1905.25,0.0001127,2]
[324915942,1714415439524,-3122.35,0.0001127,2]
[324915944,1714415439533,-1014.5,0.0001127,2]
[324915946,1714415439544,-500.0,0.0001127,2]
[324915948,1714415439554,-500.0,0.0001127,2]
[324915950,1714415439563,-1267.91,0.0001127,2]
[324915952,1714415439572,-500.0,0.0001127,2]
[324915954,1714415439581,-1187.87,0.0001127,2]
[324915956,1714415439590,-500.0,0.0001127,2]
[324915958,1714415439602,-500.0,0.0001127,2]
[324915960,1714415439612,-2097.8,0.0001127,2]
[324915962,1714415439621,-500.0,0.0001127,2]
[324915964,1714415439631,-500.0,0.0001127,2]
[324915966,1714415439643,-500.0,0.0001127,2]
[324915968,1714415439652,-2044.79,0.0001127,2]
[324915970,1714415439661,-2853.96,0.0001127,2]
[324915972,1714415439670,-500.0,0.0001127,2]
[324915974,1714415439680,-2917.16,0.0001127,2]
[324915976,1714415439689,-849.07,0.0001127,2]
[324915978,1714415439698,-500.0,0.0001127,2]
[324915980,1714415439707,-500.0,0.0001127,2]
[324915982,1714415439716,-500.0,0.0001127,2]
[324915984,1714415439725,-500.0,0.0001127,2]
[324915986,1714415439734,-2573.17,0.0001127,2]
[324915988,1714415439743,-6325.93,0.0001127,2]
[324915990,1714415439753,-500.0,0.0001127,2]
[324915992,1714415439762,-500.0,0.0001127,2]
[324915994,1714415439772,-500.0,0.0001127,2]
[324915996,1714415439780,-3533.76,0.0001127,2]
[324915999,1714415439790,-626.84,0.0001127,2]
[324916003,1714415439800,-500.0,0.0001127,2]
[324916005,1714415439809,-553.97,0.0001127,2]
[324916008,1714415439818,-500.0,0.0001127,2]
[324916011,1714415439827,-2435.44,0.0001127,2]
[324916013,1714415439837,-1529.2,0.0001127,2]
[324916015,1714415439846,-500.0,0.0001127,2]
[324916017,1714415439855,-519.26,0.0001127,2]
[324916019,1714415439865,-2250.06,0.0001127,2]
[324916021,1714415439874,-1051.95,0.0001127,2]
[324916023,1714415439883,-1460.71,0.0001127,2]
[324916025,1714415439892,-786.56,0.0001127,2]
[324916027,1714415439901,-6683.53,0.0001127,2]
[324916029,1714415439910,-4531.56,0.0001127,2]
[324916031,1714415439919,-500.0,0.00011271,2]
[324916033,1714415439928,-1520.96,0.00011271,2]
[324916035,1714415439937,-755.8913904,0.00011271,2]
[324916037,1714415439952,-1545.7186096,0.00011271,2]
[324916039,1714415439961,-1528.06,0.00011271,2]
[324916041,1714415439970,-1746.79,0.00011271,2]
[324916043,1714415439979,-526.08,0.00011271,2]
[324916045,1714415439988,-1549.37,0.00011271,2]
[324916047,1714415439997,-4624.57,0.00011271,2]
[324916049,1714415440006,-2145.27,0.00011271,2]
[324916051,1714415440015,-2510.41,0.00011271,2]
[324916053,1714415440024,-3308.85,0.00011271,2]
[324916055,1714415440034,-721.71,0.00011271,2]
[324916057,1714415440043,-666.78,0.00011271,2]
[324916059,1714415440053,-2760.57,0.00011271,2]
[324916061,1714415440062,-500.0,0.00011271,2]
[324916063,1714415440071,-516.66,0.00011271,2]
[324916065,1714415440081,-876.7,0.00011271,2]
[324916067,1714415440090,-877.38,0.00011271,2]
[324916069,1714415440099,-1421.73,0.00011271,2]
[324916072,1714415440108,-500.0,0.00011272,2]
[324916074,1714415440117,-1010.04,0.00011272,2]
[324916075,1714415440127,-500.0,0.00011272,2]
[324916077,1714415440136,-500.0,0.00011272,2]
[324916079,1714415440146,-500.0,0.00011272,2]
[324916082,1714415440155,-330.36429318,0.00011272,2]
[324916084,1714415440167,-169.63570682,0.00011272,2]
[324916086,1714415440176,-500.0,0.00011272,2]
[324916088,1714415440186,-500.0,0.00011272,2]
[324916090,1714415440195,-500.0,0.00011272,2]
[324916092,1714415440204,-500.0,0.00011272,2]
[324916094,1714415440213,-500.0,0.00011272,2]
[324916096,1714415440222,-500.0,0.00011272,2]
[324916098,1714415440231,-500.0,0.00011272,2]
[324916100,1714415440240,-500.0,0.00011272,2]
[324916102,1714415440249,-500.0,0.00011272,2]
[324916104,1714415440258,-500.0,0.00011272,2]
[324916106,1714415440267,-500.0,0.00011272,2]
[324916108,1714415440276,-500.0,0.00011272,2]
[324916110,1714415440285,-500.0,0.00011272,2]
[324916112,1714415440295,-500.0,0.00011272,2]
[324916114,1714415440304,-500.0,0.00011272,2]
[324916116,1714415440313,-500.0,0.00011272,2]
[324916118,1714415440324,-185.82604418,0.00011272,2]
[324916120,1714415440336,-314.17395582,0.00011272,2]
[324916122,1714415440345,-500.0,0.00011272,2]
[324916124,1714415440355,-500.0,0.00011272,2]
[324916126,1714415440367,-500.0,0.00011272,2]
[324916128,1714415440376,-500.0,0.00011272,2]
[324916130,1714415440386,-500.0,0.00011272,2]
[324916132,1714415440395,-500.0,0.00011272,2]
[324916134,1714415440404,-1655.15,0.00011272,2]
[324916136,1714415440414,-500.0,0.00011272,2]
[324916138,1714415440423,-500.0,0.00011272,2]
[324916140,1714415440432,-500.0,0.00011272,2]
[324916142,1714415440441,-1393.61,0.00011272,2]
[324916144,1714415440450,-500.0,0.00011272,2]
[324916146,1714415440459,-5568.3,0.00011272,2]
[324916148,1714415440468,-500.0,0.00011272,2]
[324916150,1714415440477,-5019.87,0.00011272,2]
[324916152,1714415440486,-500.0,0.00011272,2]
[324916154,1714415440495,-500.0,0.00011272,2]
[324916156,1714415440504,-574.61,0.00011272,2]
[324916158,1714415440513,-500.0,0.00011272,2]
[324916159,1714415440522,-1824.19,0.00011272,2]
[324916161,1714415440532,-500.0,0.00011272,2]
[324916163,1714415440541,-4167.58044834,0.00011272,2]
[324916202,1714415440893,-323.405,0.00010808,2]
[324916205,1714415440915,-528.097667,0.00010808,2]
[324916210,1714415440946,-573.37954002,0.00010808,2]
[324916211,1714415440968,-266.51398,0.00010808,2]
[324916212,1714415440979,-301.76718498,0.00010808,2]
[324916213,1714415440988,-3441.69955166,0.00011272,2]
[324916214,1714415440997,-500.0,0.00011272,2]
[324916215,1714415441006,-500.0,0.00011272,2]
[324916216,1714415441015,-595.7,0.00011272,2]
[324916217,1714415441024,-500.0,0.00011272,2]
[324916218,1714415441033,-500.0,0.00011272,2]
[324916219,1714415441042,-417.27,0.00011316,2]
[324916220,1714415441052,-2356.43931281,0.00011435,2]
[324916222,1714415441061,-155.0,0.00011435,2]
[324916224,1714415441070,-3701.14674567,0.00011435,2]
[324916226,1714415441079,-155.0,0.00011435,2]
[324916228,1714415441088,-200.3869162,0.00011435,2]
[324916230,1714415441096,-547.32747633,0.00011435,2]
[324916232,1714415441105,-559.52786086,0.00011435,2]
[324916234,1714415441114,-413.72672253,0.00011435,2]
[324916236,1714415441123,-1182.87121202,0.00011435,2]
[324916238,1714415441132,-967.8109016,0.00011435,2]
[324916240,1714415441141,-3411.33213827,0.00011435,2]
[324916242,1714415441151,-323.87037281,0.00011435,2]
[324916244,1714415441160,-359.51576459,0.00011435,2]
[324916246,1714415441169,-192.33983108,0.00011435,2]
[324916248,1714415441179,-265.18406491,0.00011435,2]
[324916250,1714415441188,-2500.78312184,0.00011435,2]
[324916252,1714415441197,-338.55909364,0.00011435,2]
[324916254,1714415441206,-1245.03725456,0.00011435,2]
[324916256,1714415441216,-320.25027245,0.00011435,2]
[324916258,1714415441226,-161.58324712,0.00011435,2]
[324916260,1714415441236,-363.92077602,0.00011435,2]
[324916262,1714415441244,-487.5386522,0.00011435,2]
[324916264,1714415441254,-363.38739989,0.00011435,2]
[324916266,1714415441263,-155.0,0.00011435,2]
[324916268,1714415441272,-5548.56882649,0.00011435,2]
[324916270,1714415441281,-781.6572709,0.00011435,2]
[324916272,1714415441290,-3082.06843787,0.00011435,2]
[324916274,1714415441299,-329.45499352,0.00011435,2]
[324916276,1714415441308,-1061.20461407,0.00011435,2]
[324916278,1714415441318,-500.0,0.00011436,2]
[324916280,1714415441328,-500.0,0.00011436,2]
[324916282,1714415441337,-615.75,0.00011436,2]
[324916284,1714415441346,-500.0,0.00011436,2]
[324916286,1714415441355,-500.0,0.00011436,2]
[324916288,1714415441365,-500.0,0.00011436,2]
[324916290,1714415441374,-500.0,0.00011436,2]
[324916292,1714415441383,-4846.42,0.00011436,2]
[324916294,1714415441392,-209.4668852,0.00011436,2]
[324916296,1714415441401,-289965.3362029,0.00011437,2]
[324916298,1714415441410,-500.0,0.00011439,2]
[324916300,1714415441419,-500.0,0.00011439,2]
[324916302,1714415441429,-500.0,0.00011439,2]
[324916304,1714415441438,-500.0,0.00011439,2]
[324916305,1714415441448,-500.0,0.00011439,2]
[324916307,1714415441457,-500.0,0.00011543,2]
[324916309,1714415441467,-500.0,0.00011543,2]
[324916312,1714415441476,-1013.19,0.00011543,2]
[324916313,1714415441486,-3158.01,0.00011543,2]
[324916315,1714415441496,-1762.54,0.00011543,2]
[324916317,1714415441505,-1300.23,0.00011543,2]
[324916320,1714415441514,-761.7,0.00011543,2]
[324916321,1714415441523,-500.0,0.00011543,2]
[324916324,1714415441532,-500.0,0.00011543,2]
[324916326,1714415441542,-500.0,0.00011543,2]
[324916328,1714415441553,-2713.11,0.00011543,2]
[324916329,1714415441562,-2419.19,0.00011543,2]
[324916332,1714415441572,-550.58,0.00011543,2]
[324916334,1714415441581,-2551.48,0.00011543,2]
[324916335,1714415441590,-2541.24,0.00011543,2]
[324916337,1714415441601,-1950.63,0.00011543,2]
[324916339,1714415441613,-1449.24,0.00011543,2]
[324916341,1714415441623,-612.79,0.00011543,2]
[324916343,1714415441632,-500.0,0.00011543,2]
[324916346,1714415441642,-500.0,0.00011543,2]
[324916347,1714415441654,-500.0,0.00011543,2]
[324916349,1714415441663,-4533.67,0.00011543,2]
[324916351,1714415441672,-500.0,0.00011544,2]
[324916353,1714415441681,-500.0,0.00011544,2]
[324916355,1714415441690,-500.0,0.00011544,2]
[324916357,1714415441699,-500.0,0.00011544,2]
[324916359,1714415441708,-500.0,0.00011544,2]
[324916361,1714415441717,-500.0,0.00011544,2]
[324916363,1714415441726,-545.72,0.00011544,2]
[324916365,1714415441735,-788.7,0.00011544,2]
[324916368,1714415441746,-500.0,0.00011544,2]
[324916370,1714415441755,-500.0,0.00011544,2]
[324916372,1714415441764,-500.0,0.00011544,2]
[324916374,1714415441774,-150.0,0.00011544,2]
[324916376,1714415441783,-500.0,0.00011544,2]
[324916378,1714415441792,-500.0,0.00011544,2]
[324916380,1714415441802,-1732.76,0.00011544,2]
[324916382,1714415441812,-500.0,0.00011544,2]
[324916384,1714415441821,-500.0,0.00011544,2]
[324916386,1714415441830,-1159.26,0.00011544,2]
[324916388,1714415441840,-425.58,0.00011544,2]
[324916390,1714415441849,-500.0,0.00011544,2]
[324916392,1714415441858,-500.0,0.00011544,2]
[324916394,1714415441867,-1069.88,0.00011544,2]
[324916396,1714415441876,-500.0,0.00011544,2]
[324916398,1714415441885,-500.0,0.00011544,2]
[324916400,1714415441894,-500.0,0.00011544,2]
[324916402,1714415441903,-500.0,0.00011544,2]
[324916404,1714415441913,-500.0,0.00011544,2]
[324916406,1714415441922,-500.0,0.00011544,2]
[324916408,1714415441931,-500.0,0.00011544,2]
[324916410,1714415441940,-500.0,0.00011544,2]
[324916412,1714415441949,-500.0,0.00011544,2]
[324916413,1714415441959,-524.08,0.00011544,2]
[324916415,1714415441971,-881.16,0.00011544,2]
[324916418,1714415441980,-500.0,0.00011544,2]
[324916420,1714415441989,-3747.04,0.00011544,2]
[324916421,1714415441998,-500.0,0.00011544,2]
[324916422,1714415442007,-5413.66,0.00011544,2]
[324916423,1714415442016,-500.0,0.00011544,2]
[324916424,1714415442025,-500.0,0.00011544,2]
[324916425,1714415442034,-500.0,0.00011544,2]
[324916426,1714415442043,-500.0,0.00011544,2]
[324916427,1714415442054,-2142.36,0.00011544,2]
[324916428,1714415442063,-500.0,0.00011544,2]
[324916429,1714415442072,-522.28,0.00011544,2]
[324916430,1714415442081,-1123.94,0.00011544,2]
[324916431,1714415442090,-917.58,0.00011544,2]
[324916432,1714415442099,-500.0,0.00011544,2]
[324916433,1714415442108,-1163.02,0.00011544,2]
[324916434,1714415442116,-500.0,0.00011544,2]
[324916435,1714415442126,-1133.02,0.00011544,2]
[324916436,1714415442135,-1122.95,0.00011544,2]
[324916437,1714415442144,-4665.06,0.00011544,2]
[324916438,1714415442152,-500.0,0.00011544,2]
[324916439,1714415442163,-1408.02,0.00011544,2]
[324916440,1714415442172,-500.0,0.00011544,2]
[324916442,1714415442181,-500.0,0.00011544,2]
[324916444,1714415442191,-1813.76,0.00011544,2]
[324916446,1714415442200,-1142.08,0.00011544,2]
[324916448,1714415442209,-81.13982579,0.00011544,2]
[324916450,1714415442222,-820.62017421,0.00011544,2]
[324916452,1714415442231,-625.52394569,0.00011544,2]
[324916455,1714415442246,-1279.72605431,0.00011544,2]
[324916457,1714415442255,-1734.58986871,0.00011544,2]
[324916459,1714415442273,-696.92,0.00011544,2]
[324916532,1714415442942,-1987.52816452,0.0001127,2]
[324916541,1714415443014,-268.17183548,0.0001127,2]
[324916543,1714415443023,-690.84013129,0.00011544,2]
[324916545,1714415443033,-1014.5,0.00011544,2]
[324916547,1714415443042,-500.0,0.00011544,2]
[324916549,1714415443051,-500.0,0.00011544,2]
[324916551,1714415443061,-1267.91,0.00011544,2]
[324916553,1714415443070,-454.6,0.00011544,2]
[324916555,1714415443078,-1187.87,0.00011544,2]
[324916557,1714415443087,-88.71670754,0.00011544,2]
[324916559,1714415443098,-411.28329246,0.00011544,2]
[324916561,1714415443107,-500.0,0.00011544,2]
[324916563,1714415443116,-2097.8,0.00011544,2]
[324916565,1714415443125,-500.0,0.00011544,2]
[324916567,1714415443134,-500.0,0.00011544,2]
[324916569,1714415443144,-500.0,0.00011544,2]
[324916571,1714415443154,-259.04748589,0.00011544,2]
[324916573,1714415443166,-1226.99999763,0.00011544,2]
[324916575,1714415443177,-558.74251648,0.00011544,2]
[324916577,1714415443185,-478.43650427,0.00011544,2]
[324916580,1714415443196,-1204.17105637,0.00011544,2]
[324916591,1714415443292,-1171.35243936,0.00011544,2]
[324916610,1714415443472,-500.0,0.00011544,2]
[324916612,1714415443482,-2917.16,0.00011544,2]
[324916614,1714415443492,-849.07,0.00011544,2]
[324916616,1714415443501,-500.0,0.00011544,2]
[324916618,1714415443510,-500.0,0.00011544,2]
[324916620,1714415443519,-500.0,0.00011544,2]
[324916622,1714415443528,-500.0,0.00011544,2]
[324916624,1714415443538,-2573.17,0.00011544,2]
[324916626,1714415443548,-6325.93,0.00011544,2]
[324916628,1714415443557,-500.0,0.00011544,2]
[324916630,1714415443567,-500.0,0.00011544,2]
[324916632,1714415443576,-500.0,0.00011544,2]
[324916634,1714415443584,-3533.76,0.00011544,2]
[324916636,1714415443594,-626.84,0.00011544,2]
[324916638,1714415443604,-287.68,0.00011544,2]
[324916640,1714415443615,-553.97,0.00011544,2]
[324916642,1714415443625,-500.0,0.00011544,2]
[324916643,1714415443634,-2435.44,0.00011544,2]
[324916645,1714415443642,-1529.2,0.00011544,2]
[324916647,1714415443653,-500.0,0.00011544,2]
[324916648,1714415443662,-519.26,0.00011544,2]
[324916650,1714415443671,-2250.06,0.00011544,2]
[324916652,1714415443680,-1051.95,0.00011544,2]
[324916653,1714415443690,-1460.71,0.00011544,2]
[324916655,1714415443699,-786.56,0.00011544,2]
[324916657,1714415443708,-6683.53,0.00011544,2]
[324916658,1714415443717,-4531.56,0.00011544,2]
[324916660,1714415443726,-2255.7,0.00011544,2]
[324916661,1714415443735,-500.0,0.00011545,2]
[324916663,1714415443745,-1520.96,0.00011545,2]
[324916665,1714415443754,-2301.61,0.00011545,2]
[324916667,1714415443763,-1528.06,0.00011545,2]
[324916668,1714415443772,-1746.79,0.00011545,2]
[324916670,1714415443781,-526.08,0.00011545,2]
[324916671,1714415443791,-1549.37,0.00011545,2]
[324916673,1714415443800,-4624.57,0.00011545,2]
[324916675,1714415443809,-2145.27,0.00011545,2]
[324916677,1714415443818,-2510.41,0.00011545,2]
[324916679,1714415443827,-3308.85,0.00011545,2]
[324916680,1714415443836,-721.71,0.00011545,2]
[324916682,1714415443845,-666.78,0.00011545,2]
[324916684,1714415443855,-2760.57,0.00011545,2]
[324916685,1714415443864,-500.0,0.00011545,2]
[324916687,1714415443874,-516.66,0.00011545,2]
[324916688,1714415443883,-876.7,0.00011545,2]
[324916690,1714415443893,-877.38,0.00011545,2]
[324916692,1714415443902,-1421.73,0.00011545,2]
[324916694,1714415443911,-500.0,0.00011546,2]
[324916696,1714415443921,-1010.04,0.00011546,2]
[324916697,1714415443929,-500.0,0.00011546,2]
[324916699,1714415443938,-500.0,0.00011546,2]
[324916701,1714415443948,-500.0,0.00011546,2]
[324916702,1714415443958,-500.0,0.00011546,2]
[324916704,1714415443967,-500.0,0.00011546,2]
[324916706,1714415443977,-500.0,0.00011546,2]
[324916708,1714415443986,-500.0,0.00011546,2]
[324916709,1714415443996,-500.0,0.00011546,2]
[324916711,1714415444006,-500.0,0.00011546,2]
[324916713,1714415444017,-500.0,0.00011546,2]
[324916715,1714415444026,-500.0,0.00011546,2]
[324916717,1714415444036,-500.0,0.00011546,2]
[324916718,1714415444046,-500.0,0.00011546,2]
[324916720,1714415444055,-500.0,0.00011546,2]
[324916722,1714415444064,-500.0,0.00011546,2]
[324916723,1714415444073,-500.0,0.00011546,2]
[324916725,1714415444082,-500.0,0.00011546,2]
[324916727,1714415444091,-500.0,0.00011546,2]
[324916729,1714415444101,-500.0,0.00011546,2]
[324916731,1714415444110,-500.0,0.00011546,2]
[324916732,1714415444119,-500.0,0.00011546,2]
[324916734,1714415444128,-500.0,0.00011546,2]
[324916736,1714415444138,-500.0,0.00011546,2]
[324916738,1714415444147,-500.0,0.00011546,2]
[324916740,1714415444158,-500.0,0.00011546,2]
[324916741,1714415444167,-500.0,0.00011546,2]
[324916743,1714415444176,-500.0,0.00011546,2]
[324916745,1714415444186,-1655.15,0.00011546,2]
[324916747,1714415444195,-500.0,0.00011546,2]
[324916749,1714415444204,-500.0,0.00011546,2]
[324916750,1714415444213,-500.0,0.00011546,2]
[324916752,1714415444222,-1393.61,0.00011546,2]
[324916754,1714415444231,-500.0,0.00011546,2]
[324916756,1714415444240,-5568.3,0.00011546,2]
[324916757,1714415444250,-500.0,0.00011546,2]
[324916759,1714415444259,-5019.87,0.00011546,2]
[324916761,1714415444269,-500.0,0.00011546,2]
[324916763,1714415444278,-500.0,0.00011546,2]
[324916764,1714415444287,-574.61,0.00011546,2]
[324916766,1714415444296,-500.0,0.00011546,2]
[324916768,1714415444306,-1824.19,0.00011546,2]
[324916769,1714415444315,-500.0,0.00011546,2]
[324916771,1714415444324,-7609.28,0.00011546,2]
[324916773,1714415444333,-500.0,0.00011546,2]
[324916775,1714415444343,-500.0,0.00011546,2]
[324916776,1714415444352,-595.7,0.00011546,2]
[324916778,1714415444362,-500.0,0.00011546,2]
[324916780,1714415444371,-500.0,0.00011546,2]
[324916782,1714415444380,-3245.4855,0.00011611,2]
[324916783,1714415444389,-155.0,0.000117,2]
[324916785,1714415444399,-627.01,0.0001171,2]
[324916787,1714415444408,-500.0,0.0001171,2]
[324916789,1714415444418,-500.0,0.0001171,2]
[324916790,1714415444427,-500.0,0.0001171,2]
[324916792,1714415444436,-439.43,0.0001171,2]
[324916794,1714415444446,-500.0,0.0001171,2]
[324916795,1714415444455,-4846.42,0.0001171,2]
[324916797,1714415444465,-500.0,0.00011713,2]
[324916799,1714415444475,-337.77915097,0.00011713,2]
[324916801,1714415444484,-500.0,0.00011713,2]
[324916802,1714415444493,-500.0,0.00011713,2]
[324916804,1714415444504,-500.0,0.00011713,2]
[324916806,1714415444514,-165.17,0.00011729,2]
[324916808,1714415444523,-5511.46712701,0.000118,2]
[324916810,1714415444537,-9143.75192379,0.000118,2]
[324916812,1714415444548,-658.35,0.000118,2]
[324916825,1714415444683,558.32,9.047e-05,2]
[324916937,1714415445920,-1484.87,0.00011269,2]
[324916939,1714415445930,-19478.69295312,0.00011271,2]
[324916941,1714415445940,-558.32,0.00011311,2]
[324916943,1714415445949,-571.83093292,0.00011435,7]
[324916945,1714415445959,-1484.87,0.00011543,2]
[324916947,1714415445969,-28981.03211181,0.000118,2]
[324916949,1714415445978,-500.0,0.00011817,2]
[324916951,1714415445987,-500.0,0.00011817,2]
[324916953,1714415445996,-1013.19,0.00011817,2]
[324916955,1714415446005,-3158.01,0.00011817,2]
[324916957,1714415446014,-1762.54,0.00011817,2]
[324916959,1714415446023,-1300.23,0.00011817,2]
[324916961,1714415446033,-761.7,0.00011817,2]
[324916963,1714415446042,-500.0,0.00011817,2]
[324916965,1714415446051,-500.0,0.00011817,2]
[324916967,1714415446061,-500.0,0.00011817,2]
[324916969,1714415446070,-2713.11,0.00011817,2]
[324916971,1714415446080,-2419.19,0.00011817,2]
[324916973,1714415446090,-550.58,0.00011817,2]
[324916975,1714415446099,-2551.48,0.00011817,2]
[324916977,1714415446108,-2541.24,0.00011817,2]
[324916979,1714415446117,-1950.63,0.00011817,2]
[324916981,1714415446126,-1449.24,0.00011817,2]
[324916983,1714415446135,-612.79,0.00011817,2]
[324916985,1714415446144,-500.0,0.00011817,2]
[324916987,1714415446154,-500.0,0.00011817,2]
[324916990,1714415446164,-500.0,0.00011817,2]
[324916993,1714415446173,-4533.67,0.00011817,2]
[324916995,1714415446182,-500.0,0.00011818,2]
[324916998,1714415446191,-500.0,0.00011818,2]
[324917001,1714415446200,-500.0,0.00011818,2]
[324917003,1714415446208,-500.0,0.00011818,2]
[324917006,1714415446217,-564.13,0.00011818,2]
[324917008,1714415446226,-545.72,0.00011818,2]
[324917010,1714415446235,-788.7,0.00011818,2]
[324917012,1714415446244,-612.65683233,0.00011818,2]
[324917014,1714415446253,-500.0,0.00011818,2]
[324917016,1714415446263,-500.0,0.00011818,2]
[324917018,1714415446272,-150.0,0.00011818,2]
[324917020,1714415446281,-500.0,0.00011818,2]
[324917022,1714415446290,-500.0,0.00011818,2]
[324917024,1714415446300,-1732.76,0.00011818,2]
[324917026,1714415446309,-500.0,0.00011818,2]
[324917028,1714415446319,-593.86777049,0.00011818,2]
[324917030,1714415446328,-1159.26,0.00011818,2]
[324917032,1714415446337,-500.0,0.00011818,2]
[324917034,1714415446347,-500.0,0.00011818,2]
[324917036,1714415446356,-1069.88,0.00011818,2]
[324917038,1714415446365,-500.0,0.00011818,2]
[324917040,1714415446374,-500.0,0.00011818,2]
[324917042,1714415446384,-500.0,0.00011818,2]
[324917044,1714415446393,-500.0,0.00011818,2]
[324917046,1714415446402,-500.0,0.00011818,2]
[324917048,1714415446411,-500.0,0.00011818,2]
[324917050,1714415446420,-615.19,0.00011818,2]
[324917052,1714415446429,-881.16,0.00011818,2]
[324917054,1714415446439,-500.0,0.00011818,2]
[324917056,1714415446448,-3747.04,0.00011818,2]
[324917058,1714415446456,-500.0,0.00011818,2]
[324917060,1714415446466,-500.0,0.00011818,2]
[324917062,1714415446475,-500.0,0.00011818,2]
[324917064,1714415446485,-500.0,0.00011818,2]
[324917066,1714415446494,-500.0,0.00011818,2]
[324917068,1714415446503,-2142.36,0.00011818,2]
[324917070,1714415446512,-500.0,0.00011818,2]
[324917072,1714415446521,-522.28,0.00011818,2]
[324917074,1714415446530,-1123.94,0.00011818,2]
[324917076,1714415446539,-917.58,0.00011818,2]
[324917078,1714415446548,-500.0,0.00011818,2]
[324917080,1714415446557,-1163.02,0.00011818,2]
[324917082,1714415446566,-500.0,0.00011818,2]
[324917084,1714415446575,-1133.02,0.00011818,2]
[324917086,1714415446584,-1122.95,0.00011818,2]
[324917088,1714415446593,-4665.06,0.00011818,2]
[324917090,1714415446605,-500.0,0.00011818,2]
[324917092,1714415446616,-1408.02,0.00011818,2]
[324917094,1714415446625,-500.0,0.00011818,2]
[324917096,1714415446634,-500.0,0.00011818,2]
[324917098,1714415446643,-1813.76,0.00011818,2]